fUSD/lending_fUSD_20240117
["ID","MTS","AMOUNT","RATE_DAILY","PERIOD"]
[311928707,1705504251072,-500.0,0.00022739,2]
[311928708,1705504251081,-554.93,0.00022739,2]
[311928709,1705504251090,-500.0,0.00022739,2]
[311928710,1705504251100,-500.0,0.00022739,2]
[311928711,1705504251110,-500.0,0.00022739,2]
[311928712,1705504251119,-500.0,0.00022739,2]
[311928713,1705504251129,-287.7,0.00022739,2]
[311928714,1705504251138,-846.17,0.00022739,5]
[311928715,1705504251147,-500.0,0.00022739,2]
[311928716,1705504251157,-500.0,0.00022739,2]
[311928717,1705504251166,-500.0,0.00022739,2]
[311928718,1705504251175,-616.43,0.00022739,2]
[311928719,1705504251185,-433.58,0.00022739,2]
[311928720,1705504251194,-500.0,0.00022739,2]
[311928721,1705504251203,-500.0,0.00022739,2]
[311928722,1705504251217,-500.0,0.00022739,2]
[311928723,1705504251227,-640.39999999,0.00022739,2]
[311928724,1705504251237,-373.57,0.00022739,2]
[311928725,1705504251246,-500.0,0.00022739,2]
[311928726,1705504251255,-500.0,0.00022739,2]
[311928727,1705504251265,-500.0,0.00022739,2]
[311928728,1705504251274,-500.0,0.00022739,2]
[311928729,1705504251283,-500.0,0.00022739,2]
[311928730,1705504251293,-500.0,0.00022739,2]
[311928731,1705504251302,-500.0,0.00022739,2]
[311928732,1705504251311,-354.23,0.00022739,2]
[311928733,1705504251320,-500.0,0.00022739,2]
[311928734,1705504251329,-403.06,0.00022739,2]
[311928735,1705504251338,-500.0,0.00022739,2]
[311928736,1705504251347,-500.0,0.00022739,2]
[311928737,1705504251357,-500.0,0.00022739,2]
[311928738,1705504251366,-500.0,0.00022739,2]
[311928739,1705504251375,-1953.91,0.00022739,2]
[311928740,1705504251384,-500.0,0.00022739,2]
[311928741,1705504251393,-317.17,0.00022739,2]
[311928742,1705504251402,-500.0,0.00022739,2]
[311928743,1705504251412,-5710.38,0.00022739,2]
[311928744,1705504251421,-500.0,0.00022739,2]
[311928745,1705504251430,-268.23052573,0.00022739,2]
[311928746,1705504251439,-2884.46,0.00022739,5]
[311928747,1705504251449,-500.0,0.00022739,2]
[311928748,1705504251461,-500.0,0.00022739,2]
[311928749,1705504251470,-548.93578809,0.00022739,2]
[311928750,1705504251480,-524.13994765,0.00022739,2]
[311928751,1705504251490,-500.0,0.00022739,2]
[311928752,1705504251499,-500.0,0.00022739,2]
[311928753,1705504251509,-500.0,0.00022739,2]
[311928754,1705504251518,-500.0,0.00022739,2]
[311928755,1705504251528,-153.01880311,0.00022739,2]
[311928756,1705504251537,-500.0,0.00022739,2]
[311928757,1705504251546,-1441.93,0.00022739,2]
[311928758,1705504251556,-531.4,0.00022739,2]
[311928759,1705504251565,-229.84,0.00022739,2]
[311928760,1705504251574,-340.45,0.00022739,2]
[311928761,1705504251584,-614.96,0.00022739,2]
[311928762,1705504251593,-500.0,0.00022739,2]
[311928763,1705504251603,-500.0,0.00022739,2]
[311928764,1705504251612,-637.85,0.00022739,2]
[311928765,1705504251622,-524.25,0.00022739,2]
[311928766,1705504251631,-190.17,0.00022739,2]
[311928767,1705504251642,-500.0,0.00022739,2]
[311928768,1705504251651,-500.0,0.00022739,2]
[311928769,1705504251661,-159.0,0.00022766,2]
[311928770,1705504251670,-9367.06157577,0.00022774,2]
[311928771,1705504251683,-1460.56121356,0.00022784,2]
[311928772,1705504251692,-425.87028314,0.00022784,2]
[311928773,1705504251702,-549.99916337,0.00022784,2]
[311928774,1705504251714,-2003.42707549,0.00022784,2]
[311928775,1705504251723,-198.58536633,0.00022784,2]
[311928776,1705504251732,-150.0,0.00022812,2]
[311928777,1705504251742,-115495.2955399,0.00022832,2]
[311928778,1705504251752,-171.39,0.00022884,2]
[311928779,1705504251761,-158.96032403,0.000229,2]
[311928780,1705504251772,-13081.12632127,0.000229,2]
[311928781,1705504251781,-500.0,0.00022979,2]
[311928782,1705504251791,-80753.49193627,0.0002298,2]
[311928783,1705504251800,-500.0,0.00022999,2]
[311928784,1705504251810,-500.0,0.00022999,2]
[311928785,1705504251819,-500.0,0.00022999,2]
[311928786,1705504251828,-500.0,0.00022999,2]
[311928787,1705504251837,-300.0,0.00022999,2]
[311928788,1705504251847,-300.0,0.00022999,2]
[311928789,1705504251857,-1882778.27210748,0.00022999,3]
[311928790,1705504251866,-978017.1451017,0.00023,2]
[311928791,1705504251875,-26611.31933874,0.00023,2]
[311928792,1705504251884,-236.55824154,0.00023,2]
[311928793,1705504251893,-500.0,0.00023013,2]
[311928794,1705504251903,-288.66320406,0.00023013,2]
[311928795,1705504251912,-500.0,0.00023013,2]
[311928796,1705504251921,-648.46,0.00023013,2]
[311928797,1705504251931,-500.0,0.00023013,2]
[311928798,1705504251940,-500.0,0.00023013,2]
[311928799,1705504251949,-175.9,0.00023013,2]
[311928800,1705504251960,-328.85,0.00023013,2]
[311928801,1705504251969,-500.0,0.00023013,2]
[311928802,1705504251979,-500.0,0.00023013,2]
[311928803,1705504251988,-500.0,0.00023013,2]
[311928804,1705504251997,-500.0,0.00023013,2]
[311928805,1705504252006,-846.17,0.00023013,5]
[311928806,1705504252016,-500.0,0.00023013,2]
[311928807,1705504252025,-500.0,0.00023013,2]
[311928808,1705504252034,-500.0,0.00023013,2]
[311928809,1705504252043,-486.59,0.00023013,2]
[311928810,1705504252052,-476.37,0.00023013,2]
[311928811,1705504252061,-500.0,0.00023013,2]
[311928812,1705504252070,-500.0,0.00023013,2]
[311928813,1705504252080,-500.0,0.00023013,2]
[311928814,1705504252089,-231.09,0.00023013,2]
[311928815,1705504252098,-500.0,0.00023013,2]
[311928816,1705504252107,-500.0,0.00023013,2]
[311928817,1705504252117,-500.0,0.00023013,2]
[311928818,1705504252126,-500.0,0.00023013,2]
[311928819,1705504252136,-500.0,0.00023013,2]
[311928820,1705504252145,-500.0,0.00023013,2]
[311928821,1705504252154,-500.0,0.00023013,2]
[311928822,1705504252163,-500.0,0.00023013,2]
[311928823,1705504252173,-1953.91,0.00023013,2]
[311928824,1705504252182,-307.35137334,0.00023013,2]
[311928825,1705504252191,-474.23,0.00023013,2]
[311928826,1705504252200,-5710.38,0.00023013,2]
[311928827,1705504252211,-348.93,0.00023013,2]
[311928828,1705504252219,-2884.46,0.00023013,5]
[311928829,1705504252228,-500.0,0.00023013,2]
[311928830,1705504252236,-500.0,0.00023013,2]
[311928831,1705504252244,-500.0,0.00023013,2]
[311928832,1705504252252,-500.0,0.00023013,2]
[311928833,1705504252260,-500.0,0.00023013,2]
[311928834,1705504252268,-1441.93,0.00023013,2]
[311928835,1705504252278,-500.0,0.00023013,2]
[311928836,1705504252287,-500.0,0.00023013,2]
[311928837,1705504252297,-500.0,0.00023013,2]
[311928838,1705504252306,-158.63,0.00023105,2]
[311928839,1705504252315,-400.0,0.00023245,2]
[311928840,1705504252328,-176.44,0.00023287,2]
[311928841,1705504252338,-334.22,0.00023287,2]
[311928842,1705504252348,-500.0,0.00023287,2]
[311928843,1705504252359,-500.0,0.00023287,2]
[311928844,1705504252370,-171.2,0.00023287,2]
[311928845,1705504252379,-500.0,0.00023287,2]
[311928846,1705504252390,-500.0,0.00023287,2]
[311928847,1705504252399,-157.23,0.00023287,2]
[311928848,1705504252410,-846.17,0.00023287,5]
[311928849,1705504252420,-460.9,0.00023287,2]
[311928850,1705504252429,-500.0,0.00023287,2]
[311928851,1705504252439,-500.0,0.00023287,2]
[311928852,1705504252448,-587.9,0.00023287,2]
[311928853,1705504252458,-500.0,0.00023287,2]
[311928854,1705504252470,-500.0,0.00023287,2]
[311928855,1705504252480,-500.0,0.00023287,2]
[311928856,1705504252490,-500.0,0.00023287,2]
[311928857,1705504252500,-500.0,0.00023287,2]
[311928858,1705504252509,-500.0,0.00023287,2]
[311928859,1705504252519,-500.0,0.00023287,2]
[311928860,1705504252529,-500.0,0.00023287,2]
[311928861,1705504252540,-500.0,0.00023287,2]
[311928862,1705504252550,-400.24,0.00023287,2]
[311928863,1705504252561,-1953.91,0.00023287,2]
[311928864,1705504252572,-5710.38,0.00023287,2]
[311928865,1705504252582,-2884.46,0.00023287,5]
[311928866,1705504252591,-500.0,0.00023287,2]
[311928867,1705504252602,-500.0,0.00023287,2]
[311928868,1705504252612,-500.0,0.00023287,2]
[311928869,1705504252622,-500.0,0.00023287,2]
[311928870,1705504252632,-500.0,0.00023287,2]
[311928871,1705504252641,-1441.93,0.00023287,2]
[311928872,1705504252651,-255.58,0.00023287,2]
[311928873,1705504252660,-500.0,0.00023287,2]
[311928874,1705504252671,-500.0,0.00023287,2]
[311928875,1705504252682,-500.0,0.00023288,2]
[311928876,1705504252693,-500.0,0.00023288,2]
[311928877,1705504252703,-500.0,0.00023288,2]
[311928878,1705504252713,-500.0,0.00023288,2]
[311928879,1705504252723,-500.0,0.00023288,2]
[311928880,1705504252732,-395.40464248,0.00023288,2]
[311928881,1705504252742,-500.0,0.00023288,2]
[311928882,1705504252751,-500.0,0.00023288,2]
[311928883,1705504252760,-500.0,0.00023288,2]
[311928884,1705504252770,-500.0,0.00023288,2]
[311928885,1705504252780,-500.0,0.00023288,2]
[311928886,1705504252789,-569.22118844,0.00023288,2]
[311928887,1705504252798,-500.0,0.00023288,2]
[311928888,1705504252808,-500.0,0.00023288,2]
[311928889,1705504252817,-500.0,0.00023288,2]
[311928890,1705504252826,-500.0,0.00023288,2]
[311928891,1705504252835,-499.99999999,0.00023288,2]
[311928892,1705504252845,-499.99999999,0.00023288,2]
[311928893,1705504252855,-500.0,0.00023288,4]
[311928894,1705504252865,-403.16101547,0.00023288,4]
[311928895,1705504252874,-154.9168494,0.00023288,4]
[311928896,1705504252884,-161.77,0.00023337,2]
[311928897,1705504252892,-2287.64622259,0.00023339,2]
[311928898,1705504252902,-372.06,0.00023352,2]
[311928899,1705504252911,-150.0,0.0002336,2]
[311928900,1705504252920,-200.0,0.00023391,2]
[311928901,1705504252929,-840.0,0.00023467,2]
[311928902,1705504252939,-175.57,0.0002351,2]
[311928903,1705504252948,-500.0,0.00023561,2]
[311928904,1705504252957,-500.0,0.00023561,2]
[311928905,1705504252968,-500.0,0.00023561,2]
[311928906,1705504252977,-378.07,0.00023561,2]
[311928907,1705504252986,-846.17,0.00023561,5]
[311928908,1705504252996,-383.86,0.00023561,2]
[311928909,1705504253005,-352.33,0.00023561,2]
[311928910,1705504253014,-500.0,0.00023561,2]
[311928911,1705504253023,-500.0,0.00023561,2]
[311928912,1705504253032,-500.0,0.00023561,2]
[311928913,1705504253041,-547.36,0.00023561,2]
[311928914,1705504253049,-464.52663068,0.00023561,2]
[311928915,1705504253058,-167.92,0.00023561,2]
[311928916,1705504253067,-500.0,0.00023561,2]
[311928917,1705504253076,-500.0,0.00023561,2]
[311928918,1705504253085,-500.0,0.00023561,2]
[311928919,1705504253095,-1953.91,0.00023561,2]
[311928920,1705504253105,-5710.38,0.00023561,2]
[311928921,1705504253114,-2884.46,0.00023561,5]
[311928922,1705504253123,-500.0,0.00023561,2]
[311928923,1705504253132,-500.0,0.00023561,2]
[311928924,1705504253142,-500.0,0.00023561,2]
[311928925,1705504253151,-500.0,0.00023561,2]
[311928926,1705504253161,-500.0,0.00023561,2]
[311928927,1705504253170,-1441.93,0.00023561,2]
[311928928,1705504253180,-500.0,0.00023561,2]
[311928929,1705504253189,-500.0,0.00023561,2]
[311928930,1705504253198,-158.63,0.00023567,2]
[311928931,1705504253207,-500.0,0.00023835,2]
[311928932,1705504253219,-500.0,0.00023835,2]
[311928933,1705504253228,-166.44,0.00023835,2]
[311928934,1705504253237,-846.17,0.00023835,5]
[311928935,1705504253246,-499.63,0.00023835,2]
[311928936,1705504253255,-500.0,0.00023835,2]
[311928937,1705504253264,-500.0,0.00023835,2]
[311928938,1705504253273,-500.0,0.00023835,2]
[311928939,1705504253283,-500.0,0.00023835,2]
[311928940,1705504253292,-202.45,0.00023835,2]
[311928941,1705504253301,-1953.91,0.00023835,2]
[311928942,1705504253311,-5710.38,0.00023835,2]
[311928943,1705504253320,-2884.46,0.00023835,5]
[311928944,1705504253329,-500.0,0.00023835,2]
[311928945,1705504253338,-500.0,0.00023835,2]
[311928946,1705504253347,-500.0,0.00023835,2]
[311928947,1705504253357,-500.0,0.00023835,2]
[311928948,1705504253367,-500.0,0.00023835,2]
[311928949,1705504253376,-1441.93,0.00023835,2]
[311928950,1705504253385,-500.0,0.00023835,2]
[311928951,1705504253394,-171.39,0.00023868,2]
[311928952,1705504253403,-500.0,0.00023896,2]
[311928953,1705504253412,-150.0,0.00023908,2]
[311928954,1705504253421,-300.0,0.00023915,2]
[311928955,1705504253430,-300.0,0.00023915,2]
[311928956,1705504253439,-300.0,0.00023915,2]
[311928957,1705504253448,-300.0,0.00023915,2]
[311928958,1705504253457,-300.0,0.00023915,2]
[311928959,1705504253468,-300.0,0.00023915,2]
[311928960,1705504253476,-300.0,0.00023915,2]
[311928961,1705504253485,-9367.06157577,0.0002393,2]
[311928962,1705504253494,-201.09439878,0.00024,2]
[311928963,1705504253504,-431.45808483,0.00024,2]
[311928964,1705504253514,-158.63,0.00024029,2]
[311928965,1705504253523,-400.0,0.00024046,2]
[311928966,1705504253532,-500.0,0.00024109,2]
[311928967,1705504253541,-500.0,0.00024109,2]
[311928968,1705504253550,-846.17,0.00024109,5]
[311928969,1705504253559,-500.0,0.00024109,2]
[311928970,1705504253568,-500.0,0.00024109,2]
[311928971,1705504253577,-500.0,0.00024109,2]
[311928972,1705504253586,-500.0,0.00024109,2]
[311928973,1705504253595,-1953.91,0.00024109,2]
[311928974,1705504253605,-5710.38,0.00024109,2]
[311928975,1705504253614,-2884.46,0.00024109,5]
[311928976,1705504253623,-500.0,0.00024109,2]
[311928977,1705504253633,-500.0,0.00024109,2]
[311928978,1705504253642,-500.0,0.00024109,2]
[311928979,1705504253651,-500.0,0.00024109,2]
[311928980,1705504253661,-500.0,0.00024109,2]
[311928981,1705504253671,-1441.93,0.00024109,2]
[311928982,1705504253683,-500.0,0.00024109,2]
[311928983,1705504253692,-150.0,0.00024211,2]
[311928984,1705504253701,-150.0,0.00024211,2]
[311928985,1705504253713,-6581.28380633,0.00024382,4]
[311928986,1705504253724,-500.0,0.00024382,2]
[311928987,1705504253733,-420.81,0.00024383,2]
[311928988,1705504253742,-500.0,0.00024383,2]
[311928989,1705504253751,-846.17,0.00024383,5]
[311928990,1705504253761,-500.0,0.00024383,2]
[311928991,1705504253770,-500.0,0.00024383,2]
[311928992,1705504253779,-500.0,0.00024383,2]
[311928993,1705504253789,-500.0,0.00024383,2]
[311928994,1705504253798,-1953.91,0.00024383,2]
[311928995,1705504253807,-5710.38,0.00024383,2]
[311928996,1705504253817,-2884.46,0.00024383,5]
[311928997,1705504253826,-500.0,0.00024383,2]
[311928998,1705504253835,-500.0,0.00024383,2]
[311928999,1705504253845,-500.0,0.00024383,2]
[311929000,1705504253854,-500.0,0.00024383,2]
[311929001,1705504253864,-500.0,0.00024383,2]
[311929002,1705504253873,-1441.93,0.00024383,2]
[311929003,1705504253882,-500.0,0.00024383,2]
[311929004,1705504253892,-250.0,0.00024456,2]
[311929005,1705504253901,-158.63,0.00024491,2]
[311929006,1705504253910,-161.77,0.00024582,2]
[311929007,1705504253919,-500.0,0.00024657,2]
[311929008,1705504253928,-846.17,0.00024657,5]
[311929009,1705504253938,-500.0,0.00024657,2]
[311929010,1705504253947,-500.0,0.00024657,2]
[311929011,1705504253956,-500.0,0.00024657,2]
[311929012,1705504253967,-278.0,0.00024657,2]
[311929013,1705504253976,-1953.91,0.00024657,2]
[311929014,1705504253986,-5710.38,0.00024657,2]
[311929015,1705504253995,-2884.46,0.00024657,5]
[311929016,1705504254004,-500.0,0.00024657,2]
[311929017,1705504254014,-500.0,0.00024657,2]
[311929018,1705504254023,-500.0,0.00024657,2]
[311929019,1705504254033,-500.0,0.00024657,2]
[311929020,1705504254042,-500.0,0.00024657,2]
[311929021,1705504254051,-1441.93,0.00024657,2]
[311929022,1705504254061,-500.0,0.00024657,2]
[311929023,1705504254070,-250.0,0.00024658,2]
[311929024,1705504254079,-604.3532846,0.00024745,2]
[311929025,1705504254088,-208.0,0.00024756,2]
[311929026,1705504254097,-161.16567161,0.00024799,2]
[311929027,1705504254106,-300.0,0.00024799,2]
[311929028,1705504254116,-3537.0,0.000248,2]
[311929029,1705504254125,-45338.0,0.000248,2]
[311929030,1705504254134,-175.57,0.0002482,2]
[311929031,1705504254144,-400.0,0.00024847,2]
[311929032,1705504254153,-171.39,0.00024851,2]
[311929033,1705504254162,-500.0,0.00024931,2]
[311929034,1705504254171,-846.17,0.00024931,5]
[311929035,1705504254180,-169.06,0.00024931,2]
[311929036,1705504254189,-500.0,0.00024931,2]
[311929037,1705504254198,-500.0,0.00024931,2]
[311929038,1705504254207,-1953.91,0.00024931,2]
[311929039,1705504254219,-5710.38,0.00024931,2]
[311929040,1705504254227,-2884.46,0.00024931,5]
[311929041,1705504254236,-500.0,0.00024931,2]
[311929042,1705504254246,-500.0,0.00024931,2]
[311929043,1705504254255,-500.0,0.00024931,2]
[311929044,1705504254264,-500.0,0.00024931,2]
[311929045,1705504254273,-389.3118215,0.00024931,2]
[311929046,1705504254282,-1441.93,0.00024931,2]
[311929047,1705504254292,-266.38,0.00024931,2]
[311929048,1705504254301,-158.63,0.00024953,2]
[311929049,1705504254310,-500.0,0.00024976,2]
[311929050,1705504254319,-158.65039207,0.00025,2]
[311929051,1705504254328,-201.98827283,0.00025,2]
[311929052,1705504254337,-933.54918924,0.00025,2]
[311929053,1705504254347,-1583.8032876,0.00025,2]
[311929054,1705504254356,-167.26875195,0.00025,2]
[311929055,1705504254365,-303.27668532,0.00025,2]
[311929056,1705504254375,-350.0,0.00025,3]
[311929057,1705504254384,-9367.06157577,0.00025087,2]
[311929058,1705504254393,-2287.64622259,0.00025099,2]
[311929059,1705504254402,-500.0,0.00025205,2]
[311929060,1705504254411,-846.17,0.00025205,5]
[311929061,1705504254420,-500.0,0.00025205,2]
[311929062,1705504254430,-500.0,0.00025205,2]
[311929063,1705504254439,-1953.91,0.00025205,2]
[311929064,1705504254448,-5710.38,0.00025205,2]
[311929065,1705504254457,-2884.46,0.00025205,5]
[311929066,1705504254469,-500.0,0.00025205,2]
[311929067,1705504254478,-500.0,0.00025205,2]
[311929068,1705504254487,-339.29,0.00025205,2]
[311929069,1705504254496,-500.0,0.00025205,2]
[311929070,1705504254506,-1441.93,0.00025205,2]
[311929071,1705504254515,-500.0,0.00025479,2]
[311929072,1705504254624,-846.17,0.00025479,5]
[311929073,1705504254633,-500.0,0.00025479,2]
[311929074,1705504254642,-480.85,0.00025479,2]
[311929075,1705504254652,-1953.91,0.00025479,2]
[311929076,1705504254662,-5710.38,0.00025479,2]
[311929077,1705504254671,-2884.46,0.00025479,5]
[311929078,1705504254681,-500.0,0.00025479,2]
[311929079,1705504254692,-500.0,0.00025479,2]
[311929080,1705504254703,-500.0,0.00025479,2]
[311929081,1705504254714,-1441.93,0.00025479,2]
[311929082,1705504254724,-322.05,0.000255,2]
[311929083,1705504254733,-1728.95,0.00025558,2]
[311929084,1705504254743,-372.06,0.00025616,2]
[311929085,1705504254753,-250.0,0.00025632,2]
[311929086,1705504254762,-157.083,0.00025632,2]
[311929087,1705504254771,-150.0,0.00025632,2]
[311929088,1705504254781,-153.255,0.00025632,2]
[311929089,1705504254790,-259.65,0.00025632,2]
[311929090,1705504254800,-162.732,0.00025632,2]
[311929091,1705504254809,-150.258,0.00025632,2]
[311929092,1705504254818,-150.0,0.00025632,2]
[311929093,1705504254827,-206.582,0.00025632,2]
[311929094,1705504254837,-290.039,0.00025632,2]
[311929095,1705504254846,-150.0,0.00025632,2]
[311929096,1705504254856,-235.0,0.00025642,2]
[311929097,1705504254866,-719.87,0.00025752,2]
[311929098,1705504254875,-500.0,0.00025753,2]
[311929099,1705504254885,-846.17,0.00025753,5]
[311929100,1705504254894,-640.93,0.00025753,2]
[311929101,1705504254903,-1953.91,0.00025753,2]
[311929102,1705504254913,-5710.38,0.00025753,2]
[311929103,1705504254922,-2884.46,0.00025753,5]
[311929104,1705504254932,-500.0,0.00025753,2]
[311929105,1705504254942,-552.59,0.00025753,2]
[311929106,1705504254951,-500.0,0.00025753,2]
[311929107,1705504254963,-1441.93,0.00025753,2]
[311929108,1705504254973,-161.77,0.00025828,2]
[311929109,1705504254982,-150.0,0.00025833,2]
[311929110,1705504254991,-717.20504912,0.00025899,2]
[311929111,1705504255000,-200.0,0.0002599,2]
[311929112,1705504255009,-5000.0,0.00026,2]
[311929113,1705504255018,-500.0,0.00026027,2]
[311929114,1705504255027,-846.17,0.00026027,5]
[311929115,1705504255036,-1953.91,0.00026027,2]
[311929116,1705504255046,-5710.38,0.00026027,2]
[311929117,1705504255054,-2884.46,0.00026027,5]
[311929118,1705504255064,-500.0,0.00026027,2]
[311929119,1705504255073,-500.0,0.00026027,2]
[311929120,1705504255082,-1441.93,0.00026027,2]
[311929121,1705504255091,-500.0,0.00026055,2]
[311929122,1705504255101,-840.0,0.00026075,2]
[311929123,1705504255111,-910.0,0.00026095,2]
[311929124,1705504255120,-403.15042321,0.0002619,2]
[311929125,1705504255130,-9367.06157577,0.00026243,2]
[311929126,1705504255139,-453.07523732,0.00026301,2]
[311929127,1705504255149,-846.17,0.00026301,5]
[311929128,1705504255159,-1953.91,0.00026301,2]
[311929129,1705504255168,-5710.38,0.00026301,2]
[311929130,1705504255178,-2884.46,0.00026301,5]
[311929131,1705504255188,-500.0,0.00026301,2]
[311929132,1705504255198,-500.0,0.00026301,2]
[311929133,1705504255207,-1441.93,0.00026301,2]
[311929134,1705504255218,-367.6415383,0.000264,2]
[311929135,1705504255228,-367.6415383,0.000264,2]
[311929136,1705504255238,-367.6415383,0.000264,2]
[311929137,1705504255248,-367.6415383,0.000264,2]
[311929138,1705504255257,-367.6415383,0.000264,2]
[311929139,1705504255266,-367.6415383,0.000264,2]
[311929140,1705504255276,-1100.53027965,0.0002646,2]
[311929141,1705504255285,-1093.99751604,0.0002646,2]
[311929142,1705504255295,-846.17,0.00026575,5]
[311929143,1705504255305,-1953.91,0.00026575,2]
[311929144,1705504255315,-5710.38,0.00026575,2]
[311929145,1705504255324,-2884.46,0.00026575,5]
[311929146,1705504255334,-500.0,0.00026575,2]
[311929147,1705504255344,-500.0,0.00026575,2]
[311929148,1705504255354,-1441.93,0.00026575,2]
[311929149,1705504255363,-15286.58,0.00026575,2]
[311929150,1705504255372,-846.17,0.00026849,5]
[311929151,1705504255382,-1953.91,0.00026849,2]
[311929152,1705504255391,-5710.38,0.00026849,2]
[311929153,1705504255401,-2884.46,0.00026849,5]
[311929154,1705504255411,-500.0,0.00026849,2]
[311929155,1705504255422,-500.0,0.00026849,2]
[311929156,1705504255432,-1441.93,0.00026849,2]
[311929157,1705504255443,-2287.64622259,0.00026859,3]
[311929158,1705504255453,-155.0,0.00027,2]
[311929159,1705504255465,-400.0,0.00027,3]
[311929160,1705504255474,-161.77,0.00027073,2]
[311929161,1705504255484,-846.17,0.00027123,5]
[311929162,1705504255494,-1953.91,0.00027123,2]
[311929163,1705504255503,-5710.38,0.00027123,2]
[311929164,1705504255513,-2884.46,0.00027123,5]
[311929165,1705504255523,-500.0,0.00027123,2]
[311929166,1705504255533,-500.0,0.00027123,2]
[311929167,1705504255544,-1441.93,0.00027123,2]
[311929168,1705504255554,-500.0,0.00027135,2]
[311929169,1705504255564,-155.0,0.00027397,2]
[311929170,1705504255573,-846.17,0.00027397,5]
[311929171,1705504255583,-1953.91,0.00027397,2]
[311929172,1705504255592,-5710.38,0.00027397,2]
[311929173,1705504255602,-2884.46,0.00027397,5]
[311929174,1705504255611,-500.0,0.00027397,2]
[311929175,1705504255620,-476.9,0.00027397,2]
[311929176,1705504255630,-1441.93,0.00027397,2]
[311929177,1705504255639,-1982.25,0.00027397,10]
[311929178,1705504255648,-2524.07,0.00027397,10]
[311929179,1705504255659,-2103.39,0.00027397,10]
[311929180,1705504255670,-9367.06157577,0.000274,2]
[311929181,1705504255886,-500.0,0.000274,2]
[311929182,1705504255896,-500.0,0.0002767,2]
[311929183,1705504255906,-846.17,0.00027671,5]
[311929184,1705504255915,-1953.91,0.00027671,2]
[311929185,1705504255925,-5710.38,0.00027671,2]
[311929186,1705504255935,-2884.46,0.00027671,5]
[311929187,1705504255945,-500.0,0.00027671,2]
[311929188,1705504255955,-1272.00214801,0.00027671,2]
[311929189,1705504256204,-169.92785199,0.00027671,2]
[311929190,1705504256213,-500.0,0.00027671,2]
[311929191,1705504256226,-193.64088538,0.0002788,2]
[311929192,1705504256238,-178.41911462,0.0002788,2]
[311929193,1705504256247,-846.17,0.00027945,5]
[311929194,1705504256258,-1953.91,0.00027945,2]
[311929195,1705504256267,-1094.52128538,0.00027945,2]
[311929196,1705504256278,-290.08119832,0.00027945,2]
[311929197,1705504256290,-480.04587279,0.00027945,2]
[311929198,1705504256302,-738.21863589,0.00027945,2]
[311929199,1705504256314,-510.94642236,0.00027945,2]
[311929200,1705504256331,-1607.7492,0.00027945,2]
[311929201,1705504256344,-643.89470958,0.00027945,2]
[311929202,1705504256355,-344.92267568,0.00027945,2]
[311929203,1705504256366,-2884.46,0.00027945,5]
[311929204,1705504256376,-500.0,0.00027945,2]
[311929205,1705504256386,-1441.93,0.00027945,2]
[311929206,1705504256395,-300.0,0.00027995,2]